Cogmind - Beta 13 @@@ ROGUE MODE // 2024.03.12 @ 23:03:50 Player: puppuppit Result: Destroyed by G-47 Trooper with Particle Gun Performance ------------- Evolutions (0) 0 Regions Visited (4) 800 Robots Destroyed (48) 240 Value Destroyed (596) 596 Prototype IDs (27) 540 Alien Tech Used (0) 0 Bonus (321) 321 TOTAL SCORE: 2497 Bonus ------- Follower Combat Kills 21 Aligned with FarCom 300 Cogmind --------- Core Integrity 0/250 Matter 290/300 Energy 114/125 System Corruption 0% Temperature Warning (331) Movement Hovering (56) Location -9/Mines Parts ------- > --- POWER (1) -------- Light Ion Engine > --- PROPULSION (2) --- Hover Unit Hover Unit > --- UTILITY (2) ------ Small Storage Unit Machine Analyzer > --- WEAPON (2) ------- Particle Gun Light Assault Rifle > --- INVENTORY (8) ---- Hover Unit Hover Unit High-capacity Matter Pod (200) High-capacity Matter Pod (200) Experimental Sensor Array Decoy Drone Bay Latent Energy Streamer Peak State ------------ > --- POWER ------------ Light Ion Engine > --- PROPULSION ------- Hover Unit Hover Unit > --- UTILITY ---------- Small Storage Unit Machine Analyzer > --- WEAPON ----------- Particle Gun Light Assault Rifle > --- INVENTORY -------- Hover Unit Hover Unit High-capacity Matter Pod High-capacity Matter Pod Experimental Sensor Array Decoy Drone Bay Latent Energy Streamer [Rating: 13] Favorites ----------- Power Light Ion Engine Engine Light Ion Engine Propulsion Hover Unit Wheel Wheel Hover Unit Hover Unit Utility Small Storage Unit Device Improved Terrain Scanner Storage Small Storage Unit Processor Machine Analyzer Weapon Assault Rifle Energy Gun Particle Gun Ballistic Gun Assault Rifle Build | -11 -10 -10 -10 -9 ------- Run | Yrd Mat Min Exi Min Slots Evolved . | . . . . . Power . | . . . . . Propulsion . | . . . . . Utility . | . . . . . Weapon . | . . . . . Parts Attached 24 | 7 6 7 . 4 Power 6 | 1 2 3 . . Engine 6 | 1 2 3 . . Core . | . . . . . Reactor . | . . . . . Propulsion 8 | 2 3 1 . 2 Treads . | . . . . . Leg . | . . . . . Wheel 3 | 2 1 . . . Hover 5 | . 2 1 . 2 Flight . | . . . . . Utility 4 | 2 1 . . 1 Device 1 | 1 . . . . Storage 2 | 1 . . . 1 Processor 1 | . 1 . . . Hackware . | . . . . . Protection . | . . . . . Artifact . | . . . . . Weapon 6 | 2 . 3 . 1 Energy Gun 1 | . . 1 . . Energy Cannon . | . . . . . Ballistic Gun 5 | 2 . 2 . 1 Ballistic Cannon . | . . . . . Launcher . | . . . . . Special Weapon . | . . . . . Impact Weapon . | . . . . . Slashing Weapon . | . . . . . Piercing Weapon . | . . . . . Special Melee Weapon . | . . . . . Unidentified Prototypes . | . . . . . Parts Lost 4 | . 1 3 . . Power 1 | . 1 . . . Propulsion 1 | . . 1 . . Utility . | . . . . . Weapon 2 | . . 2 . . Highest Loss Streak 2 | . 1 2 . . To Critical Strikes . | . . . . . Average Slot Usage (%) 99 | . 99 99 100 100 Engine 13 | . 13 14 14 14 Wheel 3 | . 12 . . . Hover 24 | . 15 28 28 28 Device 1 | . 4 . . . Storage 14 | . 14 14 14 14 Processor 12 | . 9 14 14 14 Energy Gun 9 | . . 12 14 14 Ballistic Gun 18 | . 28 14 14 14 Naked Turns . | . . . . . Heaviest Build 15 | 15 15 12 12 12 Greatest Support 20 | 20 20 12 12 12 Greatest Overweight (x) . | . . . . . Average Overweight (x) . | . . . . . Largest Inventory Capacity 8 | 8 8 8 8 8 Average Capacity 7 | 7 8 8 8 8 Most Carried 8 | 1 8 8 8 8 Average Carried 6 | . 5 7 7 7 Final Capacity 8 | 8 8 8 8 8 Final Carried 8 | 1 8 8 8 8 Class Distribution -------------------- 66% | Scavenger-Mutant 33% | Mutant Dominant Class ---------------- Mutant | -10/Materials Scavenger-Mutant | -10/Mines Scavenger-Mutant | -10/Exiles Scavenger-Mutant | -9/Mines Resources | -11 -10 -10 -10 -9 ----------- Run | Yrd Mat Min Exi Min Matter Collected 1201 | 324 643 180 . 54 Remotely . | . . . . . Salvage Created 1225 | 162 676 214 . 173 Parts 97 | 13 38 28 . 18 Haulers Intercepted 1 | . 1 . . . Recyclers Shooed 1 | . 1 . . . Parts Field Recycled . | . . . . . Retrieved Matter . | . . . . . Parts Self-Destructed . | . . . . . Prevented . | . . . . . Kills | -11 -10 -10 -10 -9 ------- Run | Yrd Mat Min Exi Min Combat Hostiles Destroyed 24 | . 10 8 . 6 Guns 24 | . 10 8 . 6 Classes Destroyed 9 | 2 7 . . . Worker 7 | . 5 2 . . Tunneler 9 | 5 . 1 . 3 Hauler 1 | . 1 . . . Recycler 3 | 1 2 . . . Mechanic 1 | . 1 . . . Operator 1 | . 1 . . . Watcher 2 | . 2 . . . Swarmer 16 | . 6 6 . 4 Grunt 8 | . 4 2 . 2 Best Kill Streak 6 | 6 5 3 . 3 Combat Bots Only 3 | . 3 3 . 3 Max Kills in Single Turn 2 | 2 1 1 . 1 Gunslinging . | . . . . . Exploded . | . . . . . Melee . | . . . . . Uniques/NPCs Destroyed . | . . . . . Combat | -11 -10 -10 -10 -9 -------- Run | Yrd Mat Min Exi Min Hostile Shots Fired 112 | . 43 38 . 31 Missed 30 | . 14 10 . 6 Damage Taken 849 | . 283 309 . 257 Core 254 | . 54 89 . 111 Absorbed by Shields . | . . . . . Core Remaining (%) 100 | 100 . . . . Volleys Fired 136 | 9 77 26 . 24 Largest 2 | 2 2 2 . 2 Hottest 85 | 40 40 85 . 85 Shots Fired 268 | 18 154 48 . 48 Gun 268 | 18 154 48 . 48 Cannon . | . . . . . Launcher . | . . . . . Special . | . . . . . Kinetic 227 | 18 154 31 . 24 Thermal 41 | . . 17 . 24 Explosive . | . . . . . Electromagnetic . | . . . . . Robot Hit Streak 10 | 7 10 9 . 5 Robot Miss Streak 7 | 1 7 2 . 2 Penetration Max . | . . . . . Secondary Targets 4 | . 2 . . 2 Max Gunslinging Chain 1 | . 1 . . 1 Shots Hit Robots 153 | 14 83 29 . 27 Core Hits 65 | 6 30 16 . 13 Critical Kills 1 | . 1 . . . Critical Parts Destroyed 1 | . . 1 . . Critical Strikes 5 | . 1 2 . 2 Burn 3 | . . 1 . 2 Destroy 2 | . 1 1 . . Melee Attacks . | . . . . . Impact . | . . . . . Slashing . | . . . . . Piercing . | . . . . . Sneak Attacks . | . . . . . Combat Hostiles . | . . . . . Follow-up Attacks . | . . . . . Damage Inflicted 1922 | 191 1051 342 . 338 Guns 1917 | 191 1051 342 . 333 Cannons . | . . . . . Explosions . | . . . . . Melee . | . . . . . Ramming 5 | . . . . 5 Kinetic 1535 | 191 1051 177 . 116 Thermal 382 | . . 165 . 217 Explosive . | . . . . . Electromagnetic . | . . . . . Impact . | . . . . . Slashing . | . . . . . Piercing . | . . . . . Highest Corruption . | . . . . . Average Corruption . | . . . . . Corruption Purged . | . . . . . Corruption Blocked . | . . . . . Overload Shots . | . . . . . Overflow Damage . | . . . . . Projectiles . | . . . . . Explosions . | . . . . . Melee . | . . . . . Knockbacks . | . . . . . Impact . | . . . . . Kinetic . | . . . . . Secondary . | . . . . . Self-Inflicted Damage 2 | . . . . 2 Shots . | . . . . . Rammed 1 | . . . . 1 Targets Rammed 1 | . . . . 1 Kicked . | . . . . . Crushed . | . . . . . Highest Temperature 340 | . 6 213 . 340 Average Temperature 94 | . 6 71 . 119 Received Heat Transfer 264 | . 84 105 . 75 Siege Activations . | . . . . . Robots Corrupted . | . . . . . Combat Hostiles . | . . . . . Parts Fried . | . . . . . Impact Corruptions . | . . . . . Robots Melted . | . . . . . Combat Hostiles . | . . . . . Parts Melted 2 | . . 1 . 1 Heat Transferred 1110 | . . 444 . 666 Parts Sabotaged . | . . . . . Parts Stolen . | . . . . . Parts Stripped . | . . . . . Power Chain Reactions . | . . . . . Alert | -11 -10 -10 -10 -9 ------- Run | Yrd Mat Min Exi Min Peak Influence 456 | 30 337 456 . 120 Initial 121 | . 19 121 . . Average 156 | 11 213 286 . 34 Maximum Alert Level 2 | . 1 2 . . Low Security (%) 61 | 100 48 16 . 100 Level 1 36 | . 51 73 . . Level 2 2 | . . 9 . . Level 3 . | . . . . . Level 4 . | . . . . . Level 5 . | . . . . . High Security . | . . . . . Max Security . | . . . . . Squads Dispatched 3 | . 3 . . . Investigation 2 | . 2 . . . Extermination . | . . . . . Reinforcement 1 | . 1 . . . Assault . | . . . . . Garrison . | . . . . . Intercept . | . . . . . Searches Triggered . | . . . . . Construction Impeded . | . . . . . Haulers Reinforced . | . . . . . Active Scanning Responses . | . . . . . Cargo Convoy Interrupts . | . . . . . Stealth | -11 -10 -10 -10 -9 --------- Run | Yrd Mat Min Exi Min Distress Signals 1 | . 1 . . . Communications Jammed . | . . . . . Distress Signals . | . . . . . Times Spotted 42 | . 21 12 . 9 Peak Tracking Total 4 | . 4 3 . 3 Tactical Retreats 3 | . 2 1 . . Traps | -11 -10 -10 -10 -9 ------- Run | Yrd Mat Min Exi Min Traps Triggered 1 | . 1 . . . Indirectly . | . . . . . Trap Hack Attempts . | . . . . . Triggered . | . . . . . Disarmed . | . . . . . Reprogrammed . | . . . . . Reused 1 | . . . . 1 Traps Extracted . | . . . . . Installed 5 | . . 4 . 1 Triggered 1 | . . . . 1 Most Traps Carried 2 | . . 2 1 1 Machines | -11 -10 -10 -10 -9 ---------- Run | Yrd Mat Min Exi Min Machines Disabled . | . . . . . Max in Single Turn . | . . . . . Machines Repaired . | . . . . . Machines Dismantled . | . . . . . Machines Sabotaged . | . . . . . Overloaded Fab Kills . | . . . . . Hacking | -11 -10 -10 -10 -9 --------- Run | Yrd Mat Min Exi Min Machines Accessed 14 | . 7 2 5 . Terminals 7 | . 6 1 . . Fabricators . | . . . . . Repair Stations . | . . . . . Recycling Units 1 | . 1 . . . Scanalyzers . | . . . . . Garrison Access . | . . . . . Total Hacks 79 | . 25 4 50 . Successful 61 | . 9 2 50 . Failed 17 | . 15 2 . . Catastrophic 3 | . 3 . . . Database Lockouts 1 | . 1 . . . Manual 15 | . 11 3 1 . Terminals 24 | . 21 3 . . Fabricators . | . . . . . Repair Stations . | . . . . . Recycling Units 4 | . 4 . . . Scanalyzers . | . . . . . Garrison Access . | . . . . . Terminal Hacks 61 | . 9 2 50 . Record 49 | . . . 49 . Robot Schematic 1 | . . 1 . . Robot Analysis 4 | . 4 . . . Prototype ID Bank 4 | . 4 . . . Open Door 1 | . . 1 . . Branch Access Points 1 | . 1 . . . Derelict Proto ID Bank 1 | . . . 1 . Fabricator Hacks . | . . . . . Repair Station Hacks . | . . . . . Recycling Unit Hacks . | . . . . . Scanalyzer . | . . . . . Garrison Access Hacks . | . . . . . Unauthorized Hacks . | . . . . . Terminals . | . . . . . Fabricators . | . . . . . Repair Stations . | . . . . . Recycling Units . | . . . . . Scanalyzers . | . . . . . Garrison Access . | . . . . . Data Cores Recovered . | . . . . . Used . | . . . . . Hacking Detections 8 | . 7 1 . . Full Trace Events 4 | . 4 . . . Feedback Events . | . . . . . Feedback Blocked . | . . . . . Robot Schematics Acquired 1 | . . 1 . . Robots Built . | . . . . . Authchips . | . . . . . Time . | . . . . . Total Robot Build Rating . | . . . . . Part Schematics Acquired . | . . . . . Parts Built . | . . . . . Authchips . | . . . . . Time . | . . . . . Total Part Build Rating . | . . . . . Parts Repaired . | . . . . . Time . | . . . . . Parts Recycled . | . . . . . Recycled Matter . | . . . . . Retrieved Matter . | . . . . . Retrieved Components . | . . . . . Parts Scanalyzed . | . . . . . Part Schematics Acquired . | . . . . . Parts Damaged . | . . . . . Bothacking | -11 -10 -10 -10 -9 ------------ Run | Yrd Mat Min Exi Min Used RIF Installer . | . . . . . Robots Hacked . | . . . . . Non-combat . | . . . . . Combat . | . . . . . Robot Hacks Applied . | . . . . . Relay Couplers Released . | . . . . . Fabnet Peak Effective % . | . . . . . Robots Rewired . | . . . . . Allies Hacked . | . . . . . Hacks Repelled . | . . . . . Allies | -11 -10 -10 -10 -9 -------- Run | Yrd Mat Min Exi Min Total Allies 2 | . . 2 . . Largest Group 2 | . . 2 2 . Highest-Rated Group 47 | . . 47 44 . Highest-Rated Ally 31 | . . 31 28 . Total Orders . | . . . . . Ally Attacks 10 | . . 10 . . Total Damage 109 | . . 109 . . Kills 3 | . . 3 . . Allies Corrupted . | . . . . . Allies Melted . | . . . . . Intel | -11 -10 -10 -10 -9 ------- Run | Yrd Mat Min Exi Min Robot Analysis Total 4 | . 4 . . . Derelict Logs Recovered 2 | . . 2 . . Drone Launches . | . . . . . Drone Recoveries . | . . . . . Exploration | -11 -10 -10 -10 -9 ------------- Run | Yrd Mat Min Exi Min Turns Passed 2141 | 87 611 467 306 670 Spaces Moved 2000 | 62 553 518 542 325 Core 1 | 1 . . . . Treads . | . . . . . Legs . | . . . . . Wheels 210 | 61 149 . . . Hover 1789 | . 404 518 542 325 Flight . | . . . . . Fastest Speed 50 | 50 56 56 56 56 Average Speed 58 | 79 62 56 56 56 Slowest Speed 80 | 80 80 56 56 56 Overloaded Moves . | . . . . . Propulsion Burnouts . | . . . . . Robots Hopped . | . . . . . Cave-ins Triggered . | . . . . . Exploration Rate (%) 58 | 4 79 88 90 32 Regions Visited 4 Branch Regions 3 Pre-discovered Areas 3 | . . 2 1 . Known Exits Taken 1 | . 1 . . . Unknown Exits Taken 3 | 1 . 1 1 . Scrap Searched 4 | . . 3 . 1 Spaces Dug . | . . . . . Terrain Destroyed . | . . . . . Melee . | . . . . . Projectile . | . . . . . AOE . | . . . . . Terrain Rammed . | . . . . . Walls Destroyed . | . . . . . Machines Disabled . | . . . . . Actions | -11 -10 -10 -10 -9 --------- Run | Yrd Mat Min Exi Min Total 2721 | 78 668 656 546 773 Wait 509 | . 13 84 . 412 Move 1996 | 61 552 517 541 325 Hop . | . . . . . Pick Up 23 | 1 10 8 2 2 Fast Attach 12 | 7 4 1 . . Attach 2 | . . 2 . . Detach 3 | . 3 . . . Swap 10 | . 2 4 . 4 Drop 23 | . 7 10 2 4 Fire 136 | 9 77 26 . 24 Melee . | . . . . . Ram 1 | . . . . 1 Kick . | . . . . . Crush . | . . . . . Escape Stasis . | . . . . . Rewire 1 | . . . 1 . Trap 5 | . . 4 . 1 Miscellaneous . | . . . . . Route ------- -11/Scrapyard -10/Materials (discovered 2 exits: [*Mat] / *Min) -10/Mines (discovered 2 exits: [*Mat] / *Exi) -10/Exiles -9/Mines (discovered 1 exit: [*Mat]) History --------- Turn | Location | Event 11 | -11/Scrapyard | Discovered new exit (range 16) 88 | -11/Scrapyard | Entered Materials 310 | -10/Materials | Build established: Mutant 353 | -10/Materials | Discovered new exit (range 16) 527 | -10/Materials | Discovered new exit (range 11) 567 | -10/Materials | Identified exit to Mines 651 | -10/Materials | Central database locked down 699 | -10/Materials | Entered Mines 788 | -10/Mines | Core integrity fell below 50% 806 | -10/Mines | Found a hidden stash of uninstalled traps 847 | -10/Mines | Learned location of Storage (-9) 868 | -10/Mines | Learned location of Zion (-6) 897 | -10/Mines | Learned location of 1 exit from Materials 934 | -10/Mines | Discovered new exit (range 13) 1005 | -10/Mines | Found the Drone Emporium 1020 | -10/Mines | Found Prototype Device 1039 | -10/Mines | Build established: Scavenger-Mutant 1122 | -10/Mines | Deemed a non-threat by the Exiles lab entrance 1122 | -10/Mines | Discovered new exit (range 5) 1166 | -10/Mines | Entered Exiles 1166 | -10/Exiles | Accompanied by 2 allies 1181 | -10/Exiles | Met 8R-AWN 1193 | -10/Exiles | Met EX-HEX 1196 | -10/Exiles | Led the pair of lost Derelicts to a safe place 1209 | -10/Exiles | Met EX-BIN 1282 | -10/Exiles | Aligned with FarCom system 1282 | -10/Exiles | Given EX-Vault access code 1310 | -10/Exiles | Opened EX-Vault 1314 | -10/Exiles | Found Latent Energy Streamer 1327 | -10/Exiles | Warned to stay clear of 0b10 Research branches 1342 | -10/Exiles | Met EX-DEC 1361 | -10/Exiles | Visited The Gauntlet 1467 | -10/Exiles | Discovered new exit (range 11) 1472 | -10/Exiles | Left Exiles lab with Latent Energy Streamer 1472 | -10/Exiles | Entered Mines 1501 | -9/Mines | Met a Derelict bent on vengeance 1645 | -9/Mines | Found a damaged Exp. Sensor Array with a note attached 1647 | -9/Mines | Found Prototype Device 2112 | -9/Mines | Discovered new exit (range 5) 2123 | -9/Mines | Core integrity fell below 20% 2142 | -9/Mines | Destroyed by G-47 Trooper with Particle Gun Last Messages --------------- 02014_ Acquired 15 matter. 02045_ T-07 Excavator destroyed. 02048_ Acquired 1 matter. 02111_ A derelict emerges from the shadows: "Quick, help me dispose of these Unaware!" 02112_ EXIT=FOUND 02113_ G-47 Trooper: "SECOND INTRUDER APPROACHING. ELIMINATE." 02119_ G-34 Mercenary destroyed. 02125_ F6-7JQ(g): "Mission, incomplete...*fzzt*" 02125_ F6-7JQ(g) destroyed. 02128_ G-47 Trooper heat spikes uncontrollably. 02129_ G-47 Trooper overheating. 02132_ G-47 Trooper heat damages Aluminum Leg. 02132_ G-47 Trooper overheating. 02133_ G-47 Trooper heat short circuits Aluminum Leg. 02133_ G-47 Trooper overheating. 02136_ G-34 Mercenary suffers critical hit (Burn). 02136_ Ion Engine melted. 02136_ G-34 Mercenary destroyed. 02142_ Destroyed Lgt. Nuclear Core. Map ----- +----------------------------------------------------+ | ?????# #?## #?????## #????????? | | ?????# #??### ### ###??????####?????????? | | ?????# #???# #*# ###=#?????????????????????? | | ?????#=#???## = %[#?????????????????????? | | ?????#*#????##= #####?????????????????????? | | ?????#%#?????#%###?????????????????????????? | | ?????#!#????##* ##????#########???????????? | | ?????#=#????# ##???# #???????????? | | ?????# #????# * #???# """" #???????????? | | ?????# #???## #???# """" #???????????? | | ###### #???# ##??# """" #???????????? | | # ##??# #??# #???????????? | | # !! #??## #??#%"""" #???????????? | | # ! #???#### #??#="""" #???????????? | | # ! ! #??????## ##??#["""" #???????????? | | # !!! #???????## #???#* =%" #???????????? | | # #????????# #???####*####???????????? | | #########????????# #??????# #??????????????? | | ?????????????????# ######## #??????????????? | | ?????????????????# =%=| #??????????????? | | ?????????????????# ##########??????????????? | | ?????????????????# #???????????????????????? | | ?????????????????# #???????????????????????? | | ?????????????????#*#?????##????????????????? | | ????????????######%#### ##???????????????? | | ????????????# |@g[%! #???????????????? | | ????????????# #######= % #???????????????? | | ????????????#?????????#=<= #???????????????? | | ???????????????????????#* #??????????????? | | ????????????????????????# #?????????????? | | ????????????????????????? #?????????????? | | ?????????????????????????? ##?????????????? | | ???????????????????????????##??????????????? | | ???????????????????????????????????????????? | | ???????????????????????????????????????????? | | ???????????????????????????????????????????? | | ???????????????????????????????????????????? | | ???????????????????????????????????????????? | | ???????????????????????????????????????????? | | ???????????????????????????????????????????? | | ???????????????????????????????????????????? | | ??????????????s????????????????????????????? | | ???????????????????????????????????????????? | | ???????????????????????????????????????????? | | ???????????????????????????????????????????? | | ???????????????????????????????????????????? | | ???????????????????????????????????????????? | | ???????????????????????????????????????????? | | ???????????????????????????????????????????? | | ???????????????????????????????????????????? | +----------------------------------------------------+ Best States ------------- Heat Dissipation 25 Energy Generation 10 Energy Capacity 250 Matter Stores 300 Matter Capacity 300 Sight Range 16 Terrain Scan Range 16 Terrain Scan Density 10 Evasion (%) 53 Item Schematics ----------------- None Robot Schematics ------------------ O-16 Technician | -10/Mines | Hacked Fabricated ------------ Nothing Alien Tech Used ----------------- None Achievements -------------- None Challenges ------------ None Game ------ Seed SupercompositeLightningLaser Manual? 0 Play Time 00:24:55 Cumulative 138.5 hours Start 2024.03.12 @ 22:42:18 End 2024.03.12 @ 23:03:50 Sessions 1 Manual Loads 0 Difficulty Rogue Special Mode None Game No. 76 Rogue 76 Adventurer 0 Explorer 0 Win Type - Total 0 Types 0/0/0/0/0/0/0/0/0 Lore% 56 Gallery% 61 Achievement% 53 Wizard Run 0 Options --------- Layout 0 ASCII 0 Keyboard 1 Movement Arrows Keybinds 0 Fullscreen 1 Font 12/Smallcaps Map View 83x54 Zoom Use 0% Tactical HUD 1 Map Filters NONE Filters NONE Steam 0 RUN: 144e564d-ecb3-4f5a-81cd-0fffd452a29e